bitfinex/quotes_SOLUSD_20260214
["timestamp","ask_amount","ask_price","bid_price","bid_amount"]
[1771082948449,1.7589675,87.479,87.461,0.13182762]
[1771082949044,58.4389675,87.479,87.461,0.13182762]
[1771082949429,1.7589675,87.478,87.455,0.13423864]
[1771082949832,1.7589675,87.477,87.46,2.92850451]
[1771082950148,1.7589675,87.477,87.45,2.92850451]
[1771082950658,1.7589675,87.475,87.45,2.92850451]
[1771082951145,1.7589675,87.475,87.431,0.13658264]
[1771082951355,1.7589675,87.473,87.431,0.13658264]
[1771082951928,1.7589675,87.473,87.43,14.566189]
[1771082951929,1.7589675,87.469,87.43,3.12850451]
[1771082952757,1.7589675,87.467,87.43,3.12850451]
[1771082953453,2.92850451,87.47,87.421,0.13892396]
[1771082953454,1.7589675,87.456,87.421,0.13892396]
[1771082953632,1.7589675,87.456,87.43,2.92850451]
[1771082954347,1.7589675,87.454,87.421,0.13892396]
[1771082954746,1.7589675,87.452,87.43,3.06855579]
[1771082954949,1.7589675,87.452,87.43,2.92850451]
[1771082955651,1.7589675,87.46,87.431,0.14118834]
[1771082955966,58.4789675,87.459,87.44,2.92850451]
[1771082956263,58.4789675,87.459,87.441,0.14231506]
[1771082956264,56.72,87.459,87.441,0.14231506]
[1771082958473,11.43405977,87.458,87.441,0.14231506]
[1771082958961,11.43405977,87.458,87.44,2.92850451]
[1771082960041,1.7589675,87.457,87.44,2.92850451]
[1771082961943,56.72,87.459,87.43,11.4376363]
[1771082961944,1.7589675,87.455,87.43,2.92850451]
[1771082962463,1.7589675,87.455,87.44,2.92850451]
[1771082962867,1.7589675,87.455,87.436,0.14874044]
[1771082963071,1.7589675,87.455,87.431,11.58736771]
[1771082963245,1.7589675,87.455,87.432,0.14977693]
[1771082963447,56.72,87.459,87.44,2.92850451]
[1771082964061,56.8,87.462,87.451,0.15079605]
[1771082964566,56.8,87.462,87.45,2.92850451]
[1771082965374,56.8,87.462,87.452,0.1518116]
[1771082965882,56.82,87.468,87.45,2.92850451]
[1771082966050,56.82,87.468,87.451,0.15281246]
[1771082969145,58.5789675,87.468,87.446,11.43556932]
[1771082969460,58.5789675,87.468,87.45,2.92850451]
[1771082970660,13.19185075,87.467,87.45,2.92850451]
[1771082971275,1.7589675,87.467,87.45,2.92850451]
[1771082972681,1.7589675,87.466,87.45,2.92850451]
[1771082974763,1.7589675,87.466,87.44,14.36483459]
[1771082974964,56.94,87.465,87.44,14.36483459]
[1771082975164,1.7589675,87.464,87.44,14.36483459]
[1771082975558,1.7589675,87.464,87.441,0.1602321]
[1771082975761,1.7589675,87.464,87.45,2.92850451]
[1771082977965,1.7589675,87.464,87.429,1.73869059]
[1771082978165,1.7589675,87.464,87.44,2.92850451]
[1771082979171,1.70689411,87.462,87.45,2.92850451]
[1771082980680,11.43366757,87.461,87.45,2.92850451]
[1771082981171,57.0,87.462,87.451,1.73483589]
[1771082982859,57.0,87.462,87.45,2.92981766]
[1771082983065,1.7235682,87.461,87.44,2.92981766]
[1771082983265,1.7235682,87.461,87.44,4.66465355]
[1771082983574,1.7235682,87.46,87.43,2.92981766]
[1771082983771,40.01783651,87.461,87.43,2.92981766]
[1771082983772,1.7235682,87.458,87.43,2.92981766]
[1771082984368,1.7235682,87.456,87.43,2.92981766]
[1771082985086,11.434452,87.455,87.43,2.92981766]
[1771082985288,1.7235682,87.454,87.43,2.92981766]
[1771082985666,1.7235682,87.454,87.424,1.73483589]
[1771082985866,1.7235682,87.452,87.422,11.43865675]
[1771082986286,1.7235682,87.45,87.43,2.92981766]
[1771082987292,1.7235682,87.447,87.423,1.73483589]
[1771082987583,1.7235682,87.445,87.423,1.73483589]
[1771082987971,11.4353673,87.448,87.423,1.73483589]
[1771082987972,57.1,87.444,87.423,1.73483589]
[1771082988173,1.7235682,87.443,87.423,1.73483589]
[1771082988374,57.1,87.442,87.423,1.73483589]
[1771082989895,57.12,87.447,87.431,1.73483589]
[1771082990065,57.12,87.46,87.441,1.26948148]
[1771082990270,58.8435682,87.46,87.441,1.26948148]
[1771082990468,1.7235682,87.46,87.441,1.26948148]
[1771082990684,1.7235682,87.469,87.45,2.92981766]
[1771082992477,11.43275254,87.468,87.441,1.26948148]
[1771082992697,1.7235682,87.467,87.441,1.26948148]
[1771082993196,1.7235682,87.467,87.45,2.92981766]
[1771082993495,1.7235682,87.467,87.44,2.92981766]
[1771082994288,1.7235682,87.467,87.432,12.72192937]
[1771082994492,1.7235682,87.465,87.44,2.92981766]
[1771082994872,1.7235682,87.463,87.43,2.92981766]
[1771082995083,1.7235682,87.463,87.43,4.66465355]
[1771082995510,1.7235682,87.463,87.431,1.73483589]
[1771082996881,1.7235682,87.461,87.432,1.73483589]
[1771082997687,1.7235682,87.461,87.441,1.73483589]
[1771082998289,11.43353685,87.462,87.441,1.73483589]
[1771082998494,1.7235682,87.461,87.441,1.73483589]
[1771082999083,11.4337983,87.46,87.441,1.73483589]
[1771082999288,1.7235682,87.459,87.441,1.73483589]
[1771082999593,1.7235682,87.459,87.432,1.73483589]
[1771083001810,1.77145612,87.457,87.432,1.73483589]
[1771083002403,1.77145612,87.457,87.426,1.85307631]
[1771083002610,1.77145612,87.457,87.43,2.92981766]
[1771083002900,1.77145612,87.457,87.431,1.85307631]
[1771083003591,11.43405977,87.458,87.441,1.85307631]
[1771083004207,1.77145612,87.461,87.441,1.85307631]
[1771083007305,1.77145612,87.459,87.431,1.85307631]
[1771083008011,1.77145612,87.459,87.431,11.43759078]
[1771083008189,1.77145612,87.459,87.432,1.85307631]
[1771083009717,11.43405977,87.458,87.432,1.85307631]
[1771083010409,1.77145612,87.457,87.432,1.85307631]
[1771083011496,11.43432125,87.456,87.432,1.85307631]
[1771083011809,1.77145612,87.455,87.432,1.85307631]
[1771083013317,11.43432125,87.456,87.432,1.85307631]
[1771083013519,28.58514944,87.458,87.432,1.85307631]
[1771083013899,1.77145612,87.457,87.432,1.85307631]
[1771083014716,1.77145612,87.455,87.42,2.92981766]
[1771083014920,1.77145612,87.455,87.419,1.85307631]
[1771083015215,1.77145612,87.449,87.419,1.85307631]
[1771083015413,1.77145612,87.448,87.419,1.85307631]
[1771083016512,1.77145612,87.446,87.419,1.85307631]
[1771083018910,1.77145612,87.444,87.419,1.85307631]
[1771083019312,1.77145612,87.444,87.41,14.57005501]
[1771083019511,1.77145612,87.444,87.411,1.85307631]
[1771083020220,1.77145612,87.442,87.41,0.2]
[1771083020522,1.77145612,87.429,87.41,0.2]
[1771083021426,1.77145612,87.427,87.41,0.2]
[1771083021923,11.43798325,87.428,87.41,0.2]
[1771083021924,11.43798325,87.428,87.411,1.85307631]
[1771083022222,1.77145612,87.437,87.411,1.35236535]
[1771083022521,1.77145612,87.437,87.41,0.2]
[1771083023323,1.77145612,87.437,87.41,1.55743143]
[1771083023528,1.77145612,87.443,87.412,1.35743143]
[1771083024217,1.77145612,87.443,87.412,1.36246428]
[1771083026223,11.43615196,87.442,87.412,1.36246428]
[1771083026423,1.77145612,87.441,87.412,1.36246428]
[1771083027231,11.43641354,87.44,87.412,1.36246428]
[1771083027421,1.77145612,87.439,87.412,1.36246428]
[1771083028515,1.77145612,87.439,87.41,0.2]
[1771083029214,1.77145612,87.437,87.41,0.2]
[1771083030934,1.77145612,87.435,87.41,0.2]
[1771083032324,1.80694451,87.433,87.41,0.2]
[1771083032541,1.80694451,87.431,87.41,0.2]
[1771083033542,1.80694451,87.43,87.41,0.2]
[1771083034440,1.80694451,87.428,87.41,0.2]
[1771083036939,1.80694451,87.426,87.41,0.2]
[1771083037948,11.43693673,87.436,87.411,1.41548062]
[1771083040129,1.80694451,87.435,87.411,1.41548062]
[1771083040935,11.43641354,87.44,87.413,1.42666489]
[1771083041134,11.43532044,87.449,87.42,2.92981766]
[1771083041343,11.43532044,87.449,87.421,1.42937233]
[1771083041851,11.43532044,87.449,87.431,1.42937233]
[1771083042441,11.434668,87.454,87.431,1.42937233]
[1771083042844,1.91929546,87.453,87.431,1.42937233]
[1771083045649,11.43484425,87.452,87.431,1.42937233]
[1771083047941,1.91929546,87.459,87.433,1.44504258]
[1771083048836,1.91929546,87.459,87.421,1.44753181]
[1771083050848,1.91929546,87.457,87.431,1.45240274]
[1771083051656,13.35282345,87.463,87.441,1.45481342]
[1771083051835,1.91929546,87.477,87.451,1.45481342]
[1771083052165,13.35093459,87.477,87.451,1.45481342]
[1771083052957,13.35093459,87.477,87.46,2.93118432]
[1771083053250,1.91929546,87.483,87.461,1.45951627]
[1771083053456,11.43092293,87.482,87.461,1.45951627]
[1771083055350,1.91929546,87.489,87.46,2.93118432]
[1771083055572,1.91929546,87.489,87.455,1.46408992]
[1771083058461,28.57499937,87.49,87.46,2.93118432]
[1771083058462,1.91929546,87.487,87.46,2.93118432]
[1771083058868,1.91929546,87.487,87.461,1.47080321]
[1771083059554,1.91929546,87.487,87.46,2.93118432]
[1771083060954,58.0,87.498,87.443,1.47519575]
[1771083060955,1.91929546,87.479,87.443,1.47519575]
[1771083061161,1.91929546,87.469,87.43,2.93118432]
[1771083061338,1.93755435,87.467,87.43,2.93118432]
[1771083061540,1.93755435,87.459,87.417,1.47947898]
[1771083061754,1.93755435,87.459,87.418,11.43929167]
[1771083061953,1.93755435,87.459,87.421,1.47947898]
[1771083063433,1.93755435,87.457,87.42,2.93118432]
[1771083063666,1.93755435,87.457,87.416,1.48367039]
[1771083064638,11.43432125,87.456,87.418,1.48572854]
[1771083064841,1.93755435,87.455,87.418,1.48572854]
[1771083067066,1.93755435,87.453,87.418,1.48572854]
[1771083067373,1.93755435,87.449,87.418,1.48572854]
[1771083068144,1.93755435,87.449,87.411,1.49375681]
[1771083069166,11.4353673,87.448,87.411,1.49375681]
[1771083069350,1.93755435,87.447,87.411,1.49375681]
[1771083071250,1.93755435,87.445,87.411,1.49375681]
[1771083071645,1.93755435,87.445,87.412,1.4995257]
[1771083073357,1.93755435,87.443,87.414,1.50328897]
[1771083075967,1.93755435,87.441,87.414,1.50328897]
[1771083077557,1.93755435,87.439,87.41,0.2]
[1771083078376,1.93755435,87.439,87.411,1.51225508]
[1771083079777,1.93755435,87.437,87.412,1.51401928]
[1771083082162,1.93755435,87.435,87.412,1.51401928]
[1771083082368,1.93755435,87.435,87.41,0.2]
[1771083084258,1.93755435,87.433,87.41,0.2]
[1771083086679,1.93755435,87.431,87.41,0.2]
[1771083087889,1.93755435,87.455,87.411,1.52713725]
[1771083088062,1.93755435,87.454,87.411,1.52713725]
[1771083088468,1.93755435,87.454,87.421,1.52869151]
[1771083088693,1.93755435,87.449,87.411,1.52869151]
[1771083088863,1.93755435,87.449,87.41,0.2]
[1771083089770,1.93755435,87.447,87.41,1.73023812]
[1771083091880,1.86914914,87.445,87.411,1.53244234]
[1771083092965,11.43589039,87.444,87.411,12.97265009]
[1771083093161,1.86914914,87.443,87.412,1.53310796]
[1771083096480,1.86914914,87.441,87.413,11.439946]
[1771083096681,1.86914914,87.441,87.412,1.53310796]
[1771083096988,1.86914914,87.441,87.411,11.44020775]
[1771083098367,1.86914914,87.439,87.411,11.44020775]
[1771083101684,1.8552308,87.437,87.41,0.2]
[1771083103684,1.8552308,87.435,87.41,0.2]
[1771083103875,1.8552308,87.435,87.41,1.73668899]
[1771083104893,1.8552308,87.435,87.411,1.53699404]
[1771083109506,1.8552308,87.47,87.446,1.53785864]
[1771083110804,11.43236043,87.471,87.451,1.53870621]
[1771083112808,1.8552308,87.486,87.461,1.53921293]
[1771083113114,13.28563109,87.486,87.461,1.53921293]
[1771083113612,11.43040029,87.486,87.461,1.53921293]
[1771083113807,11.42986325,87.491,87.471,1.53947921]
[1771083114224,13.28509405,87.491,87.471,1.53947921]
[1771083114387,11.42986325,87.491,87.471,1.53947921]
[1771083115310,1.8552308,87.495,87.461,1.53997839]
[1771083117291,58.16,87.498,87.45,11.43498879]
[1771083117292,1.8552308,87.493,87.455,1.54049798]
[1771083117496,1.8552308,87.489,87.455,1.54049798]
[1771083118510,1.8552308,87.489,87.461,1.54077842]
[1771083119023,1.8552308,87.489,87.47,2.93284865]
[1771083119594,11.43013899,87.488,87.47,4.47389754]
[1771083120322,2.02269599,87.503,87.471,1.54128741]
[1771083121626,2.02269599,87.501,87.472,11.43222974]
[1771083121792,11.42771952,87.507,87.48,2.93284865]
[1771083121997,2.02269599,87.506,87.48,2.93284865]
[1771083125806,2.02269599,87.504,87.459,11.43392904]
[1771083126311,2.02269599,87.504,87.47,2.93284865]
[1771083126900,2.02269599,87.502,87.47,2.93284865]
[1771083127822,2.02269599,87.489,87.45,2.93284865]
[1771083128002,2.02269599,87.489,87.44,2.93284865]
[1771083128203,2.02269599,87.459,87.42,2.93284865]
[1771083128423,2.02269599,87.439,87.403,16.50884661]
[1771083128619,2.02269599,87.439,87.4,2.93284865]
[1771083128806,2.02269599,87.439,87.41,3.13284865]
[1771083129132,2.02269599,87.429,87.41,0.2]
[1771083130409,2.02269599,87.436,87.41,3.13284865]
[1771083130619,2.02269599,87.451,87.42,2.93284865]
[1771083131124,2.02269599,87.451,87.422,11.43866493]
[1771083131322,11.43484425,87.452,87.422,11.43866493]
[1771083131700,2.02269599,87.47,87.43,2.93284865]
[1771083132121,2.02269599,87.469,87.43,2.93284865]
[1771083133519,2.02269599,87.467,87.43,14.37054764]
[1771083134218,2.02269599,87.459,87.42,2.93284865]
[1771083135030,2.02269599,87.459,87.421,0.02089563]
[1771083135730,2.02269599,87.457,87.421,0.02089563]
[1771083135931,2.02269599,87.439,87.41,0.2]
[1771083137535,11.43667512,87.438,87.41,0.2]
[1771083137734,2.02269599,87.437,87.41,0.2]
[1771083140031,2.02269599,87.437,87.412,0.02560894]
[1771083140224,2.02269599,87.435,87.412,0.02560894]
[1771083140433,2.02269599,87.435,87.41,0.2]
[1771083142014,2.93284865,87.44,87.412,0.02903675]
[1771083142211,2.02269599,87.443,87.412,0.02903675]
[1771083143442,11.43615196,87.442,87.412,0.02903675]
[1771083143933,2.02269599,87.441,87.412,0.02903675]
[1771083144714,2.02269599,87.439,87.41,0.2]
[1771083145715,2.02269599,87.429,87.41,0.2]
[1771083146121,2.02269599,87.419,87.392,0.03233996]
[1771083147650,2.02269599,87.417,87.39,11.64292324]
[1771083148242,2.02269599,87.417,87.39,11.67844319]
[1771083149420,2.02269599,87.417,87.39,14.61129184]
[1771083150025,13.46224938,87.416,87.391,0.03655606]
[1771083151749,2.02269599,87.424,87.391,0.03655606]
[1771083151940,28.59505974,87.428,87.391,0.03655606]
[1771083152142,28.59505974,87.428,87.401,0.03849432]
[1771083152143,30.61775573,87.428,87.401,0.03849432]
[1771083152342,2.02269599,87.427,87.401,0.03849432]
[1771083154950,2.02269599,87.425,87.401,0.03849432]
[1771083155849,2.02269599,87.425,87.391,0.04010016]
[1771083156148,2.02269599,87.425,87.39,3.13284865]
[1771083156835,2.02269599,87.425,87.391,0.04047482]
[1771083157035,2.02269599,87.423,87.391,0.04047482]
[1771083157235,2.02269599,87.423,87.391,11.48330074]
[1771083157434,2.02269599,87.423,87.392,0.04086538]
[1771083160165,2.02269599,87.421,87.391,11.44282592]
[1771083161035,2.02269599,87.419,87.39,0.2]
[1771083161740,2.02269599,87.419,87.39,0.24278582]
[1771083163958,2.02269599,87.417,87.391,0.04349473]
[1771083166356,2.02269599,87.415,87.391,0.04349473]
[1771083166948,11.43955339,87.416,87.392,0.04454999]
[1771083167261,13.46224938,87.416,87.392,0.04454999]
[1771083170540,2.02269599,87.416,87.392,0.04454999]
[1771083173066,2.02269599,87.421,87.392,0.04454999]
[1771083173862,2.02269599,87.436,87.411,0.04694913]
[1771083174946,2.02269599,87.434,87.411,0.04694913]
[1771083177648,2.02269599,87.432,87.411,0.04694913]
[1771083178249,2.02269599,87.438,87.412,0.04847679]
[1771083178756,2.02269599,87.448,87.421,0.04847679]
[1771083179968,2.02269599,87.446,87.421,0.04847679]
[1771083180553,2.02269599,87.452,87.431,0.04905577]
[1771083182056,2.02269599,87.45,87.422,0.04962651]
[1771083182252,2.02269599,87.45,87.416,11.48942594]
[1771083182448,2.02269599,87.45,87.411,28.60051938]
[1771083182449,2.02269599,87.449,87.407,0.04993867]
[1771083182866,2.02269599,87.439,87.402,0.04993867]
[1771083183578,2.02269599,87.437,87.403,0.05022023]
[1771083183958,2.02269599,87.437,87.402,11.44138578]
[1771083183959,2.02269599,87.437,87.41,2.93407796]
[1771083184176,2.02269599,87.437,87.41,0.05022023]
[1771083187273,2.02269599,87.435,87.41,0.05022023]
[1771083188673,11.43623991,87.442,87.421,0.05160567]
[1771083188889,2.02269599,87.447,87.421,0.05160567]
[1771083189086,28.5831509,87.465,87.402,11.44138578]
[1771083189087,2.02269599,87.454,87.431,0.05160567]
[1771083189263,2.02269599,87.454,87.432,0.05160567]
[1771083189593,2.02269599,87.464,87.441,0.05188876]
[1771083190376,2.93407796,87.48,87.451,0.05211641]
[1771083190377,11.43131494,87.479,87.451,0.05211641]
[1771083190567,11.43131494,87.479,87.461,0.05211641]
[1771083191363,11.4290939,87.496,87.471,0.05233129]
[1771083191579,2.02269599,87.495,87.471,0.05233129]
[1771083192885,2.02269599,87.495,87.472,0.0525609]
[1771083194286,2.02269599,87.495,87.46,28.58430194]
[1771083194287,2.02269599,87.493,87.461,11.43357529]
[1771083195665,2.02269599,87.479,87.44,2.93407796]
[1771083196080,2.02269599,87.479,87.437,0.05322192]
[1771083196081,2.02269599,87.469,87.437,0.05322192]
[1771083196281,2.02269599,87.467,87.437,0.05322192]
[1771083197881,2.02269599,87.467,87.441,0.053695]
[1771083198076,2.02269599,87.467,87.45,2.93407796]
[1771083198385,2.02269599,87.473,87.451,11.48867001]
[1771083200073,11.43148372,87.478,87.452,0.05411707]
[1771083200462,11.43059491,87.485,87.461,0.05433071]
[1771083201084,2.02269599,87.484,87.46,2.93407796]
[1771083201286,2.02269599,87.484,87.454,0.05433071]
[1771083210184,2.02269599,87.469,87.435,61.9]
[1771083210388,2.02269599,87.469,87.436,11.43685885]
[1771083210593,2.05077002,87.459,87.428,50.82]
[1771083210768,2.05077002,87.459,87.42,11.43890905]
[1771083211171,2.05077002,87.459,87.42,14.37298701]
[1771083211376,2.05077002,87.459,87.43,2.93407796]
[1771083212078,11.43405977,87.458,87.44,2.93407796]
[1771083212278,2.05077002,87.459,87.44,2.93407796]
[1771083212580,11.43336341,87.464,87.44,2.93407796]
[1771083213393,13.48413343,87.464,87.44,2.93407796]
[1771083214797,11.43272876,87.469,87.441,11.43628275]
[1771083214982,11.43272876,87.469,87.45,2.93407796]
[1771083216280,2.05077002,87.472,87.45,2.93407796]
[1771083216879,2.05077002,87.472,87.441,11.43628275]
[1771083216880,2.05077002,87.472,87.434,50.82]
[1771083217298,2.05077002,87.472,87.43,2.93407796]
[1771083218200,2.05077002,87.459,87.43,11.43764814]
[1771083220613,11.43405977,87.458,87.425,11.43837575]
[1771083220780,2.05077002,87.457,87.425,11.43837575]
[1771083222003,2.05077002,87.449,87.424,50.8]
[1771083223003,2.05077002,87.447,87.424,50.8]
[1771083224087,2.05077002,87.447,87.42,11.43901169]
[1771083224482,2.05077002,87.447,87.41,2.93407796]
[1771083224689,2.05077002,87.447,87.416,11.43955339]
[1771083224987,11.43562884,87.446,87.416,11.43955339]
[1771083225188,2.05077002,87.445,87.416,11.43955339]
[1771083225585,2.05077002,87.445,87.411,11.44018638]
[1771083226006,2.05077002,87.445,87.406,62.34074032]
[1771083226793,2.05077002,87.445,87.41,11.44033486]
[1771083228607,57.16274948,87.47,87.4,11.44158032]
[1771083228608,2.04072354,87.439,87.4,11.44158032]
[1771083228799,2.04072354,87.439,87.4,13.46317029]
[1771083228993,2.04072354,87.439,87.401,2.02158997]
[1771083229510,2.04072354,87.439,87.411,2.02158997]
[1771083230708,2.04072354,87.437,87.411,2.02158997]
[1771083233406,2.04072354,87.435,87.411,2.02158997]
[1771083234518,2.04072354,87.435,87.399,2.02158997]
[1771083234716,2.04072354,87.435,87.401,2.02158997]
[1771083235727,2.93256241,87.43,87.394,53.02158997]
[1771083235905,2.93256241,87.42,87.388,11.44320346]
[1771083236214,2.04072354,87.429,87.401,2.02158997]
[1771083237813,2.04072354,87.427,87.401,2.02158997]
[1771083239308,13.47674471,87.443,87.421,2.02158997]
[1771083239510,2.04072354,87.442,87.421,2.02158997]
[1771083240614,11.43628275,87.441,87.421,2.02158997]
[1771083240817,2.04072354,87.462,87.431,2.02158997]
[1771083241033,2.04072354,87.458,87.44,2.93256241]
[1771083241204,2.04072354,87.458,87.438,2.02158997]
[1771083242013,2.04072354,87.458,87.431,1.8843832]
[1771083242219,2.04072354,87.458,87.43,2.93256241]
[1771083242402,2.04072354,87.458,87.43,4.81694561]
[1771083242607,2.00150546,87.456,87.431,1.8843832]
[1771083244722,2.00150546,87.454,87.43,2.93256241]
[1771083245918,11.4347135,87.453,87.43,2.93256241]
[1771083246117,2.00150546,87.452,87.43,2.93256241]
[1771083247908,11.43497501,87.451,87.43,2.93256241]
[1771083248206,2.00150546,87.45,87.43,2.93256241]
[1771083248929,2.00150546,87.45,87.429,1.8843832]
[1771083249118,2.00150546,87.45,87.43,2.93256241]
[1771083250015,13.43674199,87.449,87.43,2.93256241]
[1771083251625,13.43674199,87.449,87.43,4.81694561]
[1771083252028,2.00150546,87.448,87.43,4.81694561]
[1771083252832,11.43549807,87.447,87.43,4.81694561]
[1771083253034,2.00150546,87.446,87.43,4.81694561]
[1771083253332,2.00150546,87.451,87.431,1.8843832]
[1771083254436,11.43510577,87.45,87.431,1.8843832]
[1771083254625,13.43661123,87.45,87.431,1.8843832]
[1771083255329,11.43416318,87.458,87.433,1.8843832]
[1771083255527,11.43416318,87.458,87.441,1.8843832]
[1771083257639,2.00150546,87.458,87.441,1.8843832]
[1771083258734,2.00150546,87.477,87.451,1.8843832]
[1771083259729,2.00150546,87.477,87.46,2.93256241]
[1771083259922,2.00150546,87.494,87.461,1.8843832]
[1771083260138,2.00150546,87.493,87.47,2.93256241]
[1771083260432,2.00150546,87.493,87.47,4.81694561]
[1771083260742,2.00150546,87.493,87.471,1.8843832]
[1771083261411,2.00150546,87.493,87.48,2.93256241]
[1771083261622,11.42722878,87.511,87.483,1.8843832]
[1771083261927,11.42632949,87.518,87.5,4.81694561]
[1771083262129,13.42783495,87.518,87.5,4.81694561]
[1771083262427,2.00150546,87.517,87.48,2.93256241]
[1771083262628,2.00150546,87.517,87.491,1.8843832]
[1771083263044,2.00150546,87.517,87.49,2.93256241]
[1771083263743,2.00150546,87.515,87.49,4.81694561]
[1771083264832,2.00150546,87.515,87.49,2.93256241]
[1771083265758,2.00150546,87.515,87.484,1.8843832]
[1771083266038,2.00150546,87.513,87.49,2.93256241]
[1771083266430,2.00150546,87.513,87.483,1.8843832]
[1771083266836,2.00150546,87.513,87.49,2.93256241]
[1771083267031,11.52608462,87.52,87.5,2.93256241]
[1771083267340,13.52759008,87.52,87.5,2.93256241]
[1771083267536,2.10150546,87.52,87.501,1.8843832]
[1771083267844,2.10150546,87.52,87.51,2.93256241]
[1771083267845,0.1,87.52,87.51,2.93256241]
[1771083268426,0.1,87.52,87.51,4.81694561]
[1771083268630,0.1,87.52,87.511,1.8843832]
[1771083269243,0.1,87.53,87.511,1.8843832]
[1771083269440,13.42629038,87.529,87.511,1.8843832]
[1771083269739,2.00150546,87.529,87.511,1.8843832]
[1771083270741,0.1,87.53,87.52,2.93256241]
[1771083271446,0.1,87.53,87.513,1.8843832]
[1771083271925,2.04361522,87.528,87.501,1.97909996]
[1771083272332,2.04361522,87.526,87.501,1.97909996]
[1771083274639,2.04361522,87.524,87.501,1.97909996]
[1771083277646,2.93256241,87.52,87.501,1.97909996]
[1771083278241,2.04361522,87.519,87.495,1.97909996]
[1771083278444,2.04361522,87.509,87.49,1.97909996]
[1771083278844,2.04361522,87.509,87.481,52.83909996]
[1771083279035,2.04361522,87.499,87.482,11.43092293]
[1771083279232,2.04361522,87.499,87.482,13.41002289]
[1771083281137,14.35995088,87.51,87.483,2.03657327]
[1771083281526,13.28206871,87.519,87.483,2.03657327]
[1771083281941,1.85597838,87.518,87.483,2.03657327]
[1771083282522,11.42609033,87.519,87.484,11.4306616]
[1771083282731,11.42609033,87.519,87.485,2.03657327]
[1771083284733,1.85597838,87.524,87.487,2.03657327]
[1771083285449,0.1,87.53,87.501,2.03657327]
[1771083286646,0.1,87.54,87.503,2.03657327]
[1771083287047,0.1,87.54,87.504,2.03657327]
[1771083287432,1.85597838,87.538,87.504,2.03657327]
[1771083287634,1.85597838,87.529,87.504,2.03657327]
[1771083287840,1.85597838,87.519,87.498,2.03657327]
[1771083288131,11.42347982,87.539,87.498,2.03657327]
[1771083288132,2.93256241,87.53,87.498,2.03657327]
[1771083288527,1.85597838,87.529,87.5,2.03657327]
[1771083288930,2.92635687,87.53,87.5,2.03657327]
[1771083289153,4.78233525,87.53,87.5,2.03657327]
[1771083289653,1.85597838,87.529,87.5,2.03657327]
[1771083291055,1.85597838,87.529,87.502,2.03657327]
[1771083291456,1.85597838,87.519,87.496,2.03657327]
[1771083293837,11.42491545,87.528,87.496,2.03657327]
[1771083294061,11.42491545,87.528,87.486,28.57583677]
[1771083294062,1.85597838,87.527,87.498,2.03657327]
[1771083295264,1.85597838,87.527,87.5,2.03657327]
[1771083295564,2.92635687,87.53,87.5,2.03657327]
[1771083295777,1.85597838,87.529,87.5,2.03657327]
[1771083297560,2.92635687,87.53,87.502,2.03657327]
[1771083297748,1.85597838,87.529,87.502,2.03657327]
[1771083298662,1.85597838,87.527,87.502,2.03647032]
[1771083299363,2.92635687,87.53,87.502,2.03647032]
[1771083300261,1.85597838,87.539,87.502,2.03647032]
[1771083300590,1.85597838,87.507,87.464,2.03528943]
[1771083300752,11.42752662,87.508,87.445,2.03528943]
[1771083300753,2.92635687,87.48,87.445,2.03528943]
[1771083301549,4.88690267,87.48,87.445,2.03528943]
[1771083301754,1.9605458,87.479,87.445,2.03528943]
[1771083302177,2.92635687,87.48,87.445,2.03528943]
[1771083302477,2.92635687,87.48,87.447,1.98004668]
[1771083302678,4.88690267,87.48,87.449,1.98004668]
[1771083303169,2.92635687,87.49,87.449,1.98004668]
[1771083303366,1.9605458,87.489,87.449,1.98004668]
[1771083303549,1.9605458,87.479,87.45,1.98004668]
[1771083304752,1.9605458,87.479,87.452,1.98004668]
[1771083305075,4.88690267,87.47,87.452,1.98004668]
[1771083306665,11.42347982,87.539,87.462,1.98004668]
[1771083306869,1.9605458,87.538,87.482,1.98004668]
[1771083307055,1.9605458,87.519,87.484,1.98004668]
[1771083307458,1.9605458,87.519,87.49,2.92635687]
[1771083307869,1.9605458,87.519,87.491,1.98004668]
[1771083308170,1.9605458,87.519,87.5,2.92635687]
[1771083308375,1.9605458,87.538,87.501,1.98004668]
[1771083308670,1.9605458,87.536,87.501,13.40844452]
[1771083309062,1.9605458,87.536,87.502,1.98004668]
[1771083310668,1.9605458,87.534,87.504,1.98004668]
[1771083312674,3.02635687,87.54,87.506,1.98004668]
[1771083312675,0.1,87.54,87.506,1.98004668]
[1771083315484,0.1,87.54,87.511,1.98004668]
[1771083315669,0.1,87.55,87.513,1.92682547]
[1771083315868,0.1,87.55,87.516,1.92682547]
[1771083316565,0.1,87.56,87.516,1.82640551]
[1771083316764,0.1,87.56,87.523,1.82640551]
[1771083317777,1.9605458,87.559,87.525,1.82604466]
[1771083319071,1.9605458,87.549,87.524,11.42543759]
[1771083319286,1.9605458,87.549,87.519,11.42599908]
[1771083320481,1.9605458,87.549,87.519,1.82509667]
[1771083321889,1.9605458,87.547,87.519,1.82509667]
[1771083322777,1.9605458,87.545,87.513,39.99391079]